[Event "Cracovia Festival-A 2023"]
[Site "Krakow"]
[Date "2023.12.31"]
[Round "5.49"]
[White "Kazantzoglou, Stefanos"]
[Black "Krzyzanowski, Patryk"]
[Result "1-0"]
[ECO "B24"]
[WhiteElo "2152"]
[BlackElo "2102"]
[Annotator "RC"]
[PlyCount "93"]
[EventDate "2023.12.24"]
[EventType "swiss"]
[EventCountry "POL"]
[SourceTitle "playchess.com"]
[Source "ChessBase"]
[SourceQuality "1"]
[TimeControl "40/5400+30:1800+30"]

1. e4 {[%emt 0:00:02]} c5 {[%emt 0:00:05]} 2. Nc3 {[%emt 0:00:24]} Nc6 {[%emt 0:00:39]} 3. Bb5 {[%emt 0:00:07]} Nd4 {[%emt 0:00:24]} 4. Nf3 {[%emt 0:00:06]} a6 {[%emt 0:00:07]} 5. Bd3 {[%emt 0:00:05]} Nc6 {[%emt 0:02:01]} 6. O-O {[%emt 0:00:21]} g6 {[%emt 0:02:36]} 7. e5 {[%emt 0:01:41]} Bg7 {[%emt 0:00:24]} 8. Re1 {[%emt 0:00:05]} f5 {[%emt 0:05:26]} 9. a4 {[%emt 0:10:45]} e6 {[%emt 0:05:09]} 10. Nb1 {[%emt 0:12:01]} g5 {[%emt 0:05:34]} 11. h3 {[%emt 0:04:01]} h5 {[%emt 0:21:00]} 12. c3 {[%emt 0:19:51]} g4 {[%emt 0:02:30]} 13. Nh2 {[%emt 0:00:07]} gxh3 {[%emt 0:04:22]} 14. g3 {[%emt 0:00:02]} h4 {[%emt 0:06:20]} 15. g4 {[%emt 0:02:22]} Nh6 {[%emt 0:00:19]} 16. f4 {[%emt 0:01:17]} b6 {[%emt 0:07:22]} 17. Na3 {[%emt 0:03:17]} b5 {[%emt 0:05:04]} 18. gxf5 {[%emt 0:05:57]} Nxf5 {[%emt 0:00:20]} 19. Bxf5 {[%emt 0:00:07]} exf5 {[%emt 0:00:05]} 20. d4 {[%emt 0:01:00]} cxd4 {[%emt 0:05:16]} 21. cxd4 {[%emt 0:03:04]} Qb6 {[%emt 0:03:15]} 22. Nf3 {[%emt 0:00:58]} Bb7 {[%emt 0:00:50]} 23. Kh2 {[%emt 0:01:24]} O-O-O {[%emt 0:02:10]} 24. axb5 {[%emt 0:00:25]} axb5 {[%emt 0:00:50]} 25. Be3 {[%emt 0:01:50]} Bh6 {[%emt 0:03:24]} 26. Qb3 {[%emt 0:04:36]} Na5 {[%emt 0:01:05]} 27. Qxb5 {[%emt 0:00:17]} Qxb5 {[%emt 0:00:23]} 28. Nxb5 {[%emt 0:00:02]} Bxf3 {[%emt 0:01:52]} 29. Rxa5 {[%emt 0:00:16]} Rdg8 {[%emt 0:00:46]} 30. Nd6+ {[%emt 0:00:51]} Kc7 {[%emt 0:10:07]} 31. Rc5+ {[%emt 0:00:20]} Kb8 {[%emt 0:01:16]} 32. Rb5+ {[%emt 0:01:04]} Kc7 {[%emt 0:00:11]} 33. Rc1+ {[%emt 0:00:43]} Kd8 {[%emt 0:04:41]} 34. Rb8+ {[%emt 0:00:38]} Ke7 {[%emt 0:00:37]} 35. Rxg8 {[%emt 0:00:15]} Rxg8 {[%emt 0:00:38]} 36. Nxf5+ {[%emt 0:00:05]} Ke6 {[%emt 0:00:21]} 37. Nxh6 {[%emt 0:00:04]} Rg2+ {[%emt 0:00:05]} 38. Kxh3 {[%emt 0:00:04]} Rxb2 {[%emt 0:00:15]} 39. f5+ {[%emt 0:00:36]} Kd5 {[%emt 0:00:11]} 40. f6 {[%emt 0:00:00]} Ke4 {[%emt 0:00:00]} 41. f7 {[%emt 0:00:35]} Rb8 {[%emt 0:03:21]} 42. Bg5 {[%emt 0:00:17]} Bh5 {[%emt 0:00:45]} 43. Kxh4 {[%emt 0:00:23]} Bxf7 {[%emt 0:01:52]} 44. Nxf7 {[%emt 0:00:02]} Rf8 {[%emt 0:00:13]} 45. Nd6+ {[%emt 0:02:02]} Kxd4 {[%emt 0:00:19]} 46. Bf6 {[%emt 0:00:13]} Kd5 {[%emt 0:01:44]} 47. Rc4 1-0

[Event "Cracovia Festival-A 2023"]
[Site "Krakow"]
[Date "2023.12.31"]
[Round "5.50"]
[White "Gbiorczyk, Mikolaj"]
[Black "Katsanis, Vasileios Dim"]
[Result "1/2-1/2"]
[ECO "B10"]
[WhiteElo "2137"]
[BlackElo "2133"]
[Annotator "RC"]
[PlyCount "146"]
[EventDate "2023.12.24"]
[EventType "swiss"]
[EventCountry "POL"]
[SourceTitle "playchess.com"]
[Source "ChessBase"]
[SourceQuality "1"]
[TimeControl "40/5400+30:1800+30"]

1. e4 {[%emt 0:00:09]} c6 {[%emt 0:00:05]} 2. Nf3 {[%emt 0:00:09]} d5 {[%emt 0:00:05]} 3. d3 {[%emt 0:00:05]} dxe4 {[%emt 0:01:00]} 4. dxe4 {[%emt 0:00:05]} Qxd1+ {[%emt 0:00:23]} 5. Kxd1 {[%emt 0:00:04]} Bg4 {[%emt 0:00:06]} 6. Nbd2 {[%emt 0:01:28]} Nd7 {[%emt 0:01:45]} 7. Be2 {[%emt 0:02:07]} e6 {[%emt 0:01:17]} 8. Ne1 {[%emt 0:01:19]} Bxe2+ {[%emt 0:00:05]} 9. Kxe2 {[%emt 0:00:03]} Ngf6 {[%emt 0:03:18]} 10. Nd3 {[%emt 0:02:54]} Bd6 {[%emt 0:01:47]} 11. f3 {[%emt 0:02:10]} h5 {[%emt 0:01:04]} 12. h4 {[%emt 0:05:50]} O-O-O {[%emt 0:05:31]} 13. a4 {[%emt 0:02:22]} Ne5 {[%emt 0:04:10]} 14. Nxe5 {[%emt 0:01:36]} Bxe5 {[%emt 0:00:02]} 15. Nc4 {[%emt 0:01:09]} Bc7 {[%emt 0:12:24]} 16. Be3 {[%emt 0:04:22]} a6 {[%emt 0:00:20]} 17. a5 {[%emt 0:01:47]} Nd7 {[%emt 0:01:13]} 18. b3 {[%emt 0:24:27]} Ne5 {[%emt 0:08:53]} 19. Nb6+ {[%emt 0:01:47]} Kb8 {[%emt 0:00:47]} 20. Bf4 {[%emt 0:09:29]} Ng6 {[%emt 0:02:01]} 21. Bxc7+ {[%emt 0:00:21]} Kxc7 {[%emt 0:00:02]} 22. g3 {[%emt 0:01:01]} Ne5 {[%emt 0:06:26]} 23. f4 {[%emt 0:02:32]} Ng4 {[%emt 0:04:11]} 24. Rad1 {[%emt 0:04:34]} e5 {[%emt 0:01:39]} 25. Nc4 {[%emt 0:04:42]} exf4 {[%emt 0:00:56]} 26. gxf4 {[%emt 0:00:06]} Rde8 {[%emt 0:06:19]} 27. Kf3 {[%emt 0:00:56]} f6 {[%emt 0:01:58]} 28. Rd2 {[%emt 0:04:59]} Rd8 {[%emt 0:03:04]} 29. Rhd1 {[%emt 0:01:28]} Rxd2 {[%emt 0:00:07]} 30. Rxd2 {[%emt 0:00:04]} Re8 {[%emt 0:00:06]} 31. Ne3 {[%emt 0:03:48]} Nh6 {[%emt 0:00:52]} 32. Rg2 {[%emt 0:01:48]} Re7 {[%emt 0:00:08]} 33. Rg6 {[%emt 0:06:41]} Kd7 {[%emt 0:03:15]} 34. e5 {[%emt 0:03:26]} fxe5 {[%emt 0:01:20]} 35. fxe5 {[%emt 0:00:02]} Nf7 {[%emt 0:00:31]} 36. Nc4 Nxe5+ {[%emt 0:00:51]} 37. Nxe5+ {[%emt 0:03:08]} Rxe5 {[%emt 0:00:03]} 38. Rxg7+ {[%emt 0:00:05]} Ke6 {[%emt 0:07:08]} 39. b4 {[%emt 0:01:09]} Rb5 {[%emt 0:00:39]} 40. c3 {[%emt 0:00:00]} Kd5 {[%emt 0:00:00]} 41. Ke3 {[%emt 0:19:30]} Kc4 {[%emt 0:09:40]} 42. Kd2 {[%emt 0:00:05]} Rd5+ {[%emt 0:02:30]} 43. Kc2 {[%emt 0:01:10]} Rd3 {[%emt 0:00:40]} 44. Rxb7 {[%emt 0:00:32]} Rxc3+ {[%emt 0:00:05]} 45. Kd2 {[%emt 0:00:04]} Rb3 {[%emt 0:00:17]} 46. Rb6 {[%emt 0:00:36]} Rxb4 {[%emt 0:00:09]} 47. Rxa6 {[%emt 0:01:51]} Kc5 {[%emt 0:00:16]} 48. Ra8 {[%emt 0:01:07]} Ra4 {[%emt 0:08:06]} 49. Kc3 {[%emt 0:06:34]} Kb5 {[%emt 0:04:13]} 50. a6 {[%emt 0:00:25]} Ra3+ {[%emt 0:07:25]} 51. Kb2 {[%emt 0:02:44]} Ra5 {[%emt 0:01:26]} 52. Kb3 {[%emt 0:01:51]} Kb6 {[%emt 0:01:27]} 53. Kb4 {[%emt 0:00:44]} c5+ {[%emt 0:02:20]} 54. Kc3 {[%emt 0:00:10]} Ra3+ {[%emt 0:01:35]} 55. Kb2 {[%emt 0:01:06]} Rxa6 {[%emt 0:04:00]} 56. Rh8 {[%emt 0:00:11]} Kb5 {[%emt 0:00:06]} 57. Rxh5 {[%emt 0:00:06]} Rf6 {[%emt 0:00:28]} 58. Rg5 {[%emt 0:00:44]} Rf2+ {[%emt 0:00:29]} 59. Kc3 {[%emt 0:00:10]} Rf3+ {[%emt 0:00:03]} 60. Kc2 {[%emt 0:00:09]} Kb4 {[%emt 0:00:49]} 61. Rg2 Ra3 {[%emt 0:04:33]} 62. Kb2 {[%emt 0:03:14]} c4 {[%emt 0:01:01]} 63. Rg8 {[%emt 0:01:25]} Rb3+ {[%emt 0:00:32]} 64. Kc2 {[%emt 0:00:05]} Rc3+ {[%emt 0:00:04]} 65. Kb2 {[%emt 0:00:13]} Rh3 {[%emt 0:00:09]} 66. Rb8+ {[%emt 0:00:23]} Kc5 67. Kc2 {[%emt 0:00:38]} Rh2+ {[%emt 0:00:07]} 68. Kc3 {[%emt 0:00:07]} Rh3+ {[%emt 0:00:02]} 69. Kc2 {[%emt 0:00:04]} Rxh4 {[%emt 0:00:04]} 70. Rg8 {[%emt 0:00:17]} Rh2+ {[%emt 0:00:08]} 71. Kc3 {[%emt 0:00:10]} Rh3+ {[%emt 0:00:03]} 72. Kc2 {[%emt 0:00:03]} Kb4 {[%emt 0:00:05]} 73. Rb8+ {[%emt 0:00:04]} Kc5 {[%emt 0:00:03]} 1/2-1/2

[Event "Cracovia Festival-A 2023"]
[Site "Krakow"]
[Date "2023.12.31"]
[Round "5.51"]
[White "Leskiewicz, Ignacy"]
[Black "Krainski, Aleksander"]
[Result "1-0"]
[ECO "A06"]
[WhiteElo "2177"]
[BlackElo "2102"]
[Annotator "RC"]
[PlyCount "107"]
[EventDate "2023.12.24"]
[EventType "swiss"]
[EventCountry "POL"]
[SourceTitle "playchess.com"]
[Source "ChessBase"]
[SourceQuality "1"]
[TimeControl "40/5400+30:1800+30"]

1. Nf3 {[%emt 0:03:47]} d5 {[%emt 0:00:10]} 2. b3 {[%emt 0:00:12]} Nf6 {[%emt 0:00:16]} 3. Bb2 {[%emt 0:00:07]} e6 {[%emt 0:00:17]} 4. e3 {[%emt 0:00:16]} c5 {[%emt 0:01:45]} 5. c4 {[%emt 0:02:32]} Nc6 {[%emt 0:00:28]} 6. cxd5 {[%emt 0:03:55]} exd5 {[%emt 0:00:34]} 7. Bb5 {[%emt 0:01:13]} Bd6 {[%emt 0:00:34]} 8. O-O {[%emt 0:08:43]} O-O {[%emt 0:00:13]} 9. h3 {[%emt 0:04:58]} Re8 {[%emt 0:01:37]} 10. Nc3 {[%emt 0:09:02]} Bd7 {[%emt 0:06:26]} 11. Bxc6 {[%emt 0:12:51]} bxc6 {[%emt 0:03:27]} 12. Na4 {[%emt 0:02:19]} Bc8 {[%emt 0:21:07]} 13. Rc1 {[%emt 0:03:32]} Ba6 {[%emt 0:00:50]} 14. d3 {[%emt 0:00:45]} Nd7 {[%emt 0:02:18]} 15. Ba3 {[%emt 0:07:39]} Qe7 {[%emt 0:01:29]} 16. Re1 {[%emt 0:01:58]} Bb5 {[%emt 0:10:31]} 17. Nc3 {[%emt 0:13:29]} Ba6 {[%emt 0:01:47]} 18. Na4 {[%emt 0:02:14]} Bb5 {[%emt 0:00:24]} 19. Nc3 {[%emt 0:00:06]} Ba6 {[%emt 0:00:05]} 20. g3 {[%emt 0:01:26]} Rad8 {[%emt 0:03:42]} 21. e4 {[%emt 0:05:57]} dxe4 {[%emt 0:08:03]} 22. Nxe4 {[%emt 0:02:08]} Ne5 {[%emt 0:02:19]} 23. Nxe5 {[%emt 0:05:31]} Bxe5 {[%emt 0:08:02]} 24. Bxc5 {[%emt 0:03:18]} Qd7 {[%emt 0:01:29]} 25. d4 {[%emt 0:00:45]} Bb8 {[%emt 0:03:55]} 26. Qg4 {[%emt 0:02:19]} Qxg4 {[%emt 0:02:07]} 27. hxg4 {[%emt 0:00:01]} Bc8 {[%emt 0:00:01]} 28. f3 {[%emt 0:01:43]} Be6 {[%emt 0:03:04]} 29. Kf2 {[%emt 0:00:02]} f6 {[%emt 0:01:21]} 30. Re3 {[%emt 0:00:47]} Kf7 {[%emt 0:03:50]} 31. Rce1 {[%emt 0:00:17]} h6 {[%emt 0:00:35]} 32. a4 {[%emt 0:00:35]} Bd5 {[%emt 0:02:49]} 33. b4 {[%emt 0:00:41]} Bc4 {[%emt 0:03:41]} 34. Nd2 {[%emt 0:01:03]} Rxe3 {[%emt 0:01:29]} 35. Rxe3 {[%emt 0:00:01]} Be6 {[%emt 0:00:09]} 36. b5 {[%emt 0:01:11]} cxb5 {[%emt 0:00:25]} 37. axb5 {[%emt 0:00:01]} Rd7 {[%emt 0:00:14]} 38. Ra3 {[%emt 0:00:23]} Rb7 {[%emt 0:00:23]} 39. Ne4 {[%emt 0:01:14]} Bd7 {[%emt 0:01:19]} 40. Bd6 {[%emt 0:00:00]} Bxb5 {[%emt 0:00:00]} 41. Bxb8 {[%emt 0:04:20]} Rxb8 {[%emt 0:08:12]} 42. Rxa7+ {[%emt 0:00:02]} Kf8 {[%emt 0:00:34]} 43. d5 {[%emt 0:06:58]} Rd8 {[%emt 0:08:55]} 44. Nc3 {[%emt 0:06:11]} Bc4 {[%emt 0:01:04]} 45. Ra5 {[%emt 0:01:00]} Re8 {[%emt 0:00:35]} 46. Ra4 {[%emt 0:04:59]} Bd3 {[%emt 0:00:15]} 47. Rd4 {[%emt 0:00:41]} Ba6 {[%emt 0:00:33]} 48. Ne4 {[%emt 0:01:50]} Rd8 {[%emt 0:02:25]} 49. Nc5 {[%emt 0:02:37]} Bc8 {[%emt 0:00:36]} 50. d6 {[%emt 0:03:34]} Bd7 {[%emt 0:00:33]} 51. Ke3 {[%emt 0:01:02]} Kf7 {[%emt 0:00:16]} 52. Re4 {[%emt 0:00:40]} Bc6 {[%emt 0:01:06]} 53. Re7+ {[%emt 0:00:36]} Kg8 {[%emt 0:00:28]} 54. Rxg7+ {[%emt 0:00:25]} 1-0

[Event "Cracovia Festival-A 2023"]
[Site "Krakow"]
[Date "2024.01.02"]
[Round "6.1"]
[White "Akbas, Umut Ata"]
[Black "Puranik, Abhimanyu"]
[Result "1/2-1/2"]
[ECO "E32"]
[WhiteElo "2446"]
[BlackElo "2627"]
[Annotator "TA"]
[PlyCount "34"]
[EventDate "2023.12.24"]
[EventType "swiss"]
[EventCountry "POL"]
[SourceTitle "playchess.com"]
[Source "ChessBase"]
[SourceQuality "1"]
[TimeControl "40/5400+30:1800+30"]

{[%evp 9,34,18,22,23,25,6,12,11,12,7,8,17,20,17,13,0,16,0,0,0,0,7,24,0,21,22,42]} 1. d4 {[%emt 0:10:50]} Nf6 {[%emt 0:00:07]} 2. c4 {[%emt 0:00:09]} e6 {[%emt 0:00:05]} 3. Nc3 {[%emt 0:00:09]} Bb4 {[%emt 0:00:06]} 4. Qc2 {[%emt 0:00:07]} Qe7 {[%emt 0:00:38]} 5. a3 {[%emt 0:09:13]} Bxc3+ {[%emt 0:00:18]} 6. Qxc3 {[%emt 0:00:07] E32: Nimzo-Indian: Classical (4 Qc2): 4...0-0.} d6 {[%emt 0:01:02]} 7. g3 {[%emt 0:03:28] [#]} e5 $146 {[%emt 0:02:18]} ({Predecessor:} 7... Bd7 8. Bg2 Bc6 9. f3 d5 10. b3 O-O 11. Nh3 Re8 12. O-O Nbd7 13. a4 e5 14. e3 {0-1 Short,N (2698)-Torre,E (2469) Olympiad-40 Istanbul 2012 (8.3)}) 8. Nf3 {[%emt 0:09:19][%cal Rd4e5]} e4 {[%emt 0:11:51]} 9. Nd2 {[%emt 0:00:57]} d5 {[%emt 0:08:41]} 10. Bg2 {[%emt 0:03:27]} O-O {[%emt 0:03:41]} 11. cxd5 {[%emt 0:04:37]} Re8 {[%emt 0:17:11]} 12. Qb3 {[%emt 0:16:17]} c6 {[%emt 0:04:35]} 13. dxc6 {[%emt 0:01:03]} Nxc6 {[%emt 0:00:05]} 14. e3 {[%emt 0:01:14]} Be6 {[%emt 0:06:58]} 15. Qa4 {[%emt 0:01:53]} Qd7 {[%emt 0:05:13][%cal Oc6e5]} 16. Nxe4 {[%emt 0:06:08]} ({Inferior is} 16. Bxe4 Nxe4 17. Nxe4 Bh3 $17) (16. O-O $5 {[%cal Rd2e4]}) 16... Nxe4 {[%emt 0:03:12]} 17. Bxe4 {[%emt 0:00:12] White wants to play 0-0.} Nxd4 {[%emt 0:05:40] Weighted Error Value: White=0.08 (flawless) /Black=0.02 (flawless)} 1/2-1/2

[Event "Cracovia Festival-A 2023"]
[Site "Krakow"]
[Date "2024.01.02"]
[Round "6.2"]
[White "Gumularz, Szymon"]
[Black "Soffer, Ram"]
[Result "1-0"]
[ECO "B40"]
[WhiteElo "2576"]
[BlackElo "2444"]
[Annotator "TA"]
[PlyCount "107"]
[EventDate "2023.12.24"]
[EventType "swiss"]
[EventCountry "POL"]
[SourceTitle "playchess.com"]
[Source "ChessBase"]
[SourceQuality "1"]
[TimeControl "40/5400+30:1800+30"]

{[%evp 11,107,35,61,31,35,35,28,19,29,26,31,32,48,21,26,13,27,16,13,0,64,63,70,75,62,56,62,62,62,58,53,53,121,47,70,61,92,51,43,35,35,47,53,47,53,30,43,36,56,31,31,25,34,39,37,0,36,12,9,25,34,0,0,0,0,0,0,0,13,21,15,27,23,25,182,168,205,209,293,293,287,207,286,260,529,512,459,498,29973,29971,29984,29985,29984,29968,5598,5192,29968,5971]} 1. e4 {[%emt 0:05:56]} c5 {[%emt 0:00:17]} 2. Nf3 {[%emt 0:00:07][%cal Bg1f3,Bf3d4,Bd4b5,Bb5d6,Bd6f5][%mdl 32]} e6 {[%emt 0:00:09]} 3. d4 {[%emt 0:00:05]} cxd4 {[%emt 0:00:05]} 4. Nxd4 {[%emt 0:00:04]} Nf6 {[%emt 0:00:17]} 5. Nc3 {[%emt 0:00:06]} Nc6 {[%emt 0:00:05]} 6. Ndb5 {[%emt 0:02:15]} Bc5 {[%emt 0:00:22]} 7. Nd6+ {[%emt 0:05:13] B45: Sicilian Four Knights.} (7. Bf4 $5 {[%cal Rb5c7]} O-O 8. Bc7 $11) 7... Ke7 $1 {[%emt 0:00:07]} 8. Bf4 {[%emt 0:00:06]} e5 {[%emt 0:00:13]} 9. Nf5+ {[%emt 0:00:05] White has an edge.} Kf8 {[%emt 0:00:06]} 10. Bg5 {[%emt 0:00:14]} d6 {[%emt 0:00:15]} 11. Bc4 {[%emt 0:01:48]} Be6 {[%emt 0:00:17]} 12. Bb3 {[%emt 0:00:13]} h6 {[%emt 0:01:27]} 13. Bxf6 {[%emt 0:01:13]} Qxf6 {[%emt 0:00:07]} 14. Nd5 {[%emt 0:00:37] A dynamic duo of knights.} Qd8 {[%emt 0:04:37] [#]} 15. c3 $146 {[%emt 0:11:07]} ({Predecessor:} 15. Qd3 g6 16. Nfe3 Kg7 17. h4 h5 18. g3 Nd4 19. c3 Nxb3 20. axb3 a5 21. f4 Bxe3 22. Nxe3 Bxb3 {½-½ Heimann,M (2440)-Stremavicius,T (2563) US Masters op 2023 (5)}) 15... Bxf5 {[%emt 0:11:47]} (15... g6 $11 16. Nfe3 Kg7) 16. exf5 $14 {[%emt 0:00:19][%cal Of5f6]} Qg5 {[%emt 0:00:06][%csl LRf5,LRg2] Prevents f6} 17. O-O {[%emt 0:03:54]} Qxf5 {[%emt 0:00:15]} 18. Bc2 {[%emt 0:00:04]} Qd7 {[%emt 0:04:57]} 19. b4 {[%emt 0:00:26]} Bb6 {[%emt 0:00:05]} 20. a4 {[%emt 0:00:32]} Bd8 {[%emt 0:13:40]} 21. f4 {[%emt 0:03:00]} exf4 {[%emt 0:05:06]} ({Better is} 21... h5 $14) 22. Rxf4 {[%emt 0:00:07]} ({White should try} 22. Nxf4 $16 {Threatens to win with Ng6+.} Ne5 23. Bb3) 22... Bg5 {[%emt 0:02:51]} 23. Rf1 {[%emt 0:00:59][%mdl 1024] White has compensation. White is more active.} Ne5 {[%emt 0:03:27]} 24. Bb3 {[%emt 0:01:07]} (24. Qd4 {seems wilder.} Qg4 25. Bb3 Kg8 26. Rae1) 24... h5 {[%emt 0:09:42]} 25. Qd4 {[%emt 0:02:51]} Rh6 {[%emt 0:05:36]} 26. Ra2 {[%emt 0:01:27][%cal Ba1a2,Ba2f2,Bf2f5][%mdl 32]} Kg8 {[%emt 0:14:16]} 27. Raf2 {[%emt 0:01:09]} Kh8 {[%emt 0:09:23]} 28. h3 {[%emt 0:03:34]} (28. h4 $5 {[%cal Rh4g5]} Bd8 29. a5 $14) 28... b6 {[%emt 0:02:47]} 29. Rf5 {[%emt 0:00:41]} Qd8 {[%emt 0:02:04]} 30. Qe4 {[%emt 0:05:43]} (30. Rxf7 Nxf7 31. Rxf7 Bf6 $11) 30... Rc8 {[%emt 0:01:26]} 31. Kh1 {[%emt 0:00:18]} h4 {[%emt 0:01:00]} 32. R5f2 {[%emt 0:08:51]} Qd7 {[%emt 0:01:24]} 33. Rf5 {[%emt 0:00:14]} Qd8 {[%emt 0:00:04]} 34. Ba2 {[%emt 0:00:14]} (34. Qd4 $5 {[%cal Rd5f4]}) 34... Rb8 {[%emt 0:02:07]} 35. b5 {[%emt 0:07:08]} Rc8 {[%emt 0:00:19]} 36. Nb4 {[%emt 0:00:03]} Rf6 {[%emt 0:02:32]} (36... Rxc3 $2 37. Nc6 (37. Bxf7 Rf6 $14) 37... Rxc6 38. bxc6 $18) 37. Rxf6 {[%emt 0:01:02]} Bxf6 {[%emt 0:00:25]} 38. Qf5 {[%emt 0:00:23][%cal Ob4c6]} Rxc3 {[%emt 0:03:44]} 39. Nd5 {[%emt 0:00:10]} Rc5 {[%emt 0:01:52]} 40. Qh5+ $40 {[%emt 0:00:00][%mdl 128] White attacks.} Kg8 {[%emt 0:00:00]} 41. Nxf6+ {[%emt 0:08:37]} gxf6 {[%emt 0:00:27]} 42. Qh6 {[%emt 0:00:26]} Qf8 $2 {[%emt 0:13:46] Loses the game.} (42... Rc2 $2 43. Bb1 (43. Qxf6 $2 Qxf6 44. Rxf6 Rxa2 $19) 43... Qc8 44. Bxc2 (44. Qxf6 Rc3 $16) 44... Qxc2 45. Qxh4 $18) (42... Qe7 $1 $11) 43. Qxf6 $18 {[%emt 0:00:20] [#] Rf5 would be deadly.} Qg7 {[%emt 0:07:51]} 44. Qd8+ {[%emt 0:00:17]} (44. Qxd6 Qg5 $11) 44... Qf8 {[%emt 0:00:16]} (44... Kh7 {is a better defense.} 45. Bb1+ (45. Qxh4+ Qh6 $16) 45... Ng6 46. Qxh4+ (46. Qxd6 Re5 $16) 46... Kg8 47. Qd8+ Qf8) 45. Qxh4 {[%emt 0:00:05] Hoping for Rf5.} d5 {[%emt 0:05:07]} 46. Qf6 {[%emt 0:05:52]} Qg7 {[%emt 0:00:50] Repels Qxe5} 47. Qe7 {[%emt 0:03:22]} Qg3 $2 {[%emt 0:03:38]} (47... f6 48. Qd6 (48. Qxf6 Qxf6 49. Rxf6 Rc1+ 50. Kh2 Nc4 $16) 48... Qf8 49. Rxf6 (49. Bxd5+ Kg7 $16) 49... Rc1+ 50. Kh2 Qxd6 51. Rxd6 Kg7 52. Rxd5 (52. Bxd5 Rd1 $16) 52... Kf6) 48. Qd8+ {[%emt 0:00:15]} (48. Qxa7 $2 {perishes.} Nf3 $19) 48... Kg7 {[%emt 0:00:10][%cal Oe5f3] [#] ...Nf3! is the strong threat.} 49. Bxd5 {[%emt 0:00:25]} Rc2 {[%emt 0:02:54]} (49... Qg6 $18 50. Bb3 Kh7) 50. Qf6+ {[%emt 0:00:22]} Kf8 {[%emt 0:00:11]} 51. Qd6+ {[%emt 0:00:24]} (51. Bxf7 $2 Qxg2#) 51... Kg8 {[%emt 0:00:25]} 52. Bxf7+ {[%emt 0:00:42]} Kh7 {[%emt 0:00:18]} 53. Bd5 {[%emt 0:00:15] White wants to mate with Be4+.} Re2 {[%emt 0:00:45] Prevents Be4+} 54. Rf7+ {[%emt 0:00:30] Weighted Error Value: White=0.10 (very precise) /Black=0.42} (54. Qe7+ $142 Kh6 55. Rf6+ Qg6 56. Rxg6+ Kxg6 57. Qxa7 Rf2 58. Qxb6+ Rf6 59. Be4+ Kg7 60. Qc7+ Nf7 61. b6) 1-0

[Event "Cracovia Festival-A 2023"]
[Site "Krakow"]
[Date "2024.01.02"]
[Round "6.3"]
[White "Dzida, Kamil"]
[Black "Keinanen, Toivo"]
[Result "1/2-1/2"]
[ECO "B08"]
[WhiteElo "2396"]
[BlackElo "2522"]
[Annotator "TA"]
[PlyCount "86"]
[EventDate "2023.12.24"]
[EventType "swiss"]
[EventCountry "POL"]
[SourceTitle "playchess.com"]
[Source "ChessBase"]
[SourceQuality "1"]
[TimeControl "40/5400+30:1800+30"]

{[%evp 17,86,0,0,1,3,7,11,0,8,0,0,0,0,0,20,12,12,10,15,10,15,5,22,13,15,0,0,0,0,0,0,0,0,0,20,0,0,0,15,4,4,4,11,4,18,17,33,31,39,25,24,23,67,68,68,63,75,68,68,68,72,44,43,36,47,0,3,0,8,0,0]} 1. d4 {[%emt 0:01:31]} d6 {[%emt 0:06:35]} 2. e4 {[%emt 0:00:11]} Nf6 {[%emt 0:00:05]} 3. Nc3 {[%emt 0:00:07]} g6 {[%emt 0:00:03]} 4. Nf3 {[%emt 0:00:10]} Bg7 {[%emt 0:00:06]} 5. Be2 {[%emt 0:00:08]} O-O {[%emt 0:00:06]} 6. O-O {[%emt 0:00:07]} c5 {[%emt 0:00:08]} 7. d5 {[%emt 0:00:26]} e6 {[%emt 0:00:06]} 8. dxe6 {[%emt 0:03:08]} Bxe6 {[%emt 0:00:16]} 9. Ng5 {[%emt 0:02:49] 9.Bf4 deserves study.} Nc6 {[%emt 0:04:34]} 10. Be3 {[%emt 0:08:24] A43: Schmid Benoni.} Qe7 {[%emt 0:02:34]} 11. Qd2 {[%emt 0:08:13]} Rad8 {[%emt 0:05:17] [#]} 12. Rad1 $146 {[%emt 0:08:34]} ({Predecessor:} 12. Nd5 Bxd5 13. exd5 Ne5 14. h3 h6 15. Nf3 Ne4 16. Qc1 Nxf3+ 17. Bxf3 Ng5 18. Be2 {½-½ Manea,A (2385)-Bogdan,D (2383) ROM-chT Calimanesti Caciulata 2016 (2.4)}) 12... d5 {[%emt 0:12:47]} 13. Nxe6 {[%emt 0:02:16]} fxe6 {[%emt 0:01:05][%cal Bf7e6,Be6d5,Bd5d4][%mdl 32]} 14. exd5 {[%emt 0:03:32]} exd5 {[%emt 0:08:49] Hoping for ...d4.} 15. Bg5 {[%emt 0:08:16][%cal Rc3d5]} d4 {[%emt 0:04:35]} 16. Bc4+ {[%emt 0:03:08] This pair of bishops is nice.} Kh8 {[%emt 0:00:04] [#]} 17. Nd5 {[%emt 0:00:26][%cal Bc3d5,Bd5f6,Bf6e4,Be4g5,Bg5f3][%mdl 32]} Qf7 {[%emt 0:05:34] ...Ne4 is the strong threat.} 18. Nxf6 {[%emt 0:10:55]} Qxc4 {[%emt 0:00:16]} 19. Ne4 {[%emt 0:00:02]} Rd7 {[%emt 0:01:23]} 20. Rfe1 {[%emt 0:01:51]} b6 {[%emt 0:03:09]} 21. Bh6 {[%emt 0:02:33]} Qxa2 {[%emt 0:10:58]} 22. Bxg7+ $1 {[%emt 0:00:15]} Kxg7 {[%emt 0:04:06]} 23. Ng5 {[%emt 0:01:12] [#] Strongly threatening Ne6+.} Nd8 {[%emt 0:01:57][%cal Bc6d8,Bd8f7,Bf7d6,Bd6f5][%mdl 32] Inhibits Ne6+.} (23... Qxb2 $2 24. Ne6+ Kg8 25. Nxf8 $18) 24. b3 {[%emt 0:04:14]} Qa6 {[%emt 0:01:39]} 25. Re4 {[%emt 0:01:31]} h6 {[%emt 0:04:24]} 26. Nf3 {[%emt 0:04:31][%mdl 1024] White has compensation.} Rf6 {[%emt 0:13:09]} 27. Rde1 {[%emt 0:05:26]} (27. Re8 {is interesting.} Nc6 28. Rde1 Rd8 29. R8e4) 27... Nf7 {[%emt 0:00:15]} 28. h4 {[%emt 0:00:33]} Qb7 {[%emt 0:01:04]} 29. c3 {[%emt 0:02:11][%cal Rc3d4]} Nd6 {[%emt 0:02:32]} 30. Rf4 {[%emt 0:05:29] aiming for Rxf6.} Rxf4 {[%emt 0:02:46]} 31. Qxf4 {[%emt 0:00:02] And now Re6 would win.} Qd5 {[%emt 0:01:48] Prevents Re6.} ({Much less strong is} 31... dxc3 32. Qe5+ (32. Re6 Nf5 $11) 32... Kh7 33. h5 $16) 32. cxd4 {[%emt 0:01:35]} Rf7 {[%emt 0:01:11]} 33. Qd2 {[%emt 0:02:37]} Nf5 {[%emt 0:01:40][%cal Rf5d4]} (33... Qxb3 $2 34. dxc5 Nf5 35. c6 $18) 34. Re5 {[%emt 0:01:28]} Qxb3 {[%emt 0:00:40]} (34... Qd8 {simplifies} 35. dxc5 Qxd2 36. Nxd2 bxc5 37. h5 gxh5 38. Rxc5 Nd4) 35. dxc5 {[%emt 0:00:16]} bxc5 {[%emt 0:00:25]} 36. Rxc5 {[%emt 0:00:25]} Qb1+ {[%emt 0:00:49]} 37. Rc1 {[%emt 0:00:42]} Qb6 {[%emt 0:00:43]} 38. Rc8 $36 {[%emt 0:02:55][%mdl 2048] Black must now prevent Ne5. White has the initiative.} Qf6 {[%emt 0:01:05] Dodges Ne5} 39. Qb4 {[%emt 0:01:30] White is more active.} Qa1+ {[%emt 0:00:39]} 40. Kh2 {[%emt 0:00:00]} Qf6 {[%emt 0:00:00] Against Rc6} 41. Ra8 {[%emt 0:10:30]} Qd6+ {[%emt 0:06:12] The position is equal.} 42. Qxd6 {[%emt 0:00:08]} Nxd6 {[%emt 0:00:01]} 43. Nd4 {[%emt 0:00:13]} Rxf2 {[%emt 0:01:51] Weighted Error Value: White=0.06 (flawless) /Black=0.06 (flawless)} 1/2-1/2